Cogmind - Beta 15 @@@ ROGUE MODE // 2025.05.18 @ 23:06:56 Player: PieTheDye Result: Destroyed by G-34 Mercenary with Small Laser Performance ------------- Evolutions (1) 500 Regions Visited (2) 400 Robots Destroyed (4) 20 Value Destroyed (91) 91 Prototype IDs (1) 20 Alien Tech Used (0) 0 Bonus (0) 0 TOTAL SCORE: 1031 Bonus ------- None Cogmind --------- Core Integrity 0/400 Matter 234/300 Energy 100/100 System Corruption 1% Temperature Cool (6) Movement Core (50) Location -9/Materials Parts ------- > --- POWER (1) -------- (None) > --- PROPULSION (2) --- (None) > --- UTILITY (4) ------ (None) > --- WEAPON (2) ------- (None) > --- INVENTORY (5) ---- Small Storage Unit Hacking Suite Light Assault Rifle Peak State ------------ > --- POWER ------------ Light Ion Engine > --- PROPULSION ------- Airjet Airjet > --- UTILITY ---------- Sensor Array > --- WEAPON ----------- Small Laser Rocket Launcher > --- INVENTORY -------- Small Storage Unit Hacking Suite Light Assault Rifle Mining Laser [Rating: 11] Favorites ----------- Power Light Ion Engine Engine Light Ion Engine Propulsion Compact Wheel Wheel Compact Wheel Hover Unit Airjet Utility Large Storage Unit Device Sensor Array Storage Large Storage Unit Weapon Light Assault Rifle Energy Gun Small Laser Energy Cannon Light EM Pulse Cannon Ballistic Gun Light Assault Rifle Launcher Rocket Launcher Special Weapon Mining Laser Build | -11 -10 -9 ------- Run | Yrd Mat Mat Slots Evolved 2 | . . 2 Power . | . . . Propulsion . | . . . Utility 2 | . . 2 Weapon . | . . . Parts Attached 19 | 8 1 10 Power 2 | 1 . 1 Engine 2 | 1 . 1 Core . | . . . Reactor . | . . . Propulsion 7 | 3 . 4 Treads . | . . . Leg . | . . . Wheel 3 | 3 . . Hover 4 | . . 4 Flight . | . . . Utility 4 | 2 1 1 Device 2 | 1 . 1 Storage 2 | 1 1 . Processor . | . . . Hackware . | . . . Protection . | . . . Artifact . | . . . Weapon 6 | 2 . 4 Energy Gun 1 | . . 1 Energy Cannon 1 | . . 1 Ballistic Gun 2 | 2 . . Ballistic Cannon . | . . . Launcher 1 | . . 1 Special Weapon 1 | . . 1 Impact Weapon . | . . . Slashing Weapon . | . . . Piercing Weapon . | . . . Special Melee Weapon . | . . . Unidentified Prototypes 1 | . . 1 Parts Lost 12 | . 3 9 Power 1 | . . 1 Propulsion 5 | . 1 4 Utility 2 | . 1 1 Weapon 4 | . 1 3 Highest Loss Streak 7 | . 3 7 To Critical Strikes . | . . . Average Backups 3 | 1 4 3 Power . | . . . Propulsion . | . 1 . Utility 1 | . 1 1 Weapon 1 | 1 2 1 Tool/Special . | . . . Unused Backups 1 | . . 1 Power . | . . . Propulsion . | . . . Utility 1 | . . 1 Weapon . | . . . Tool/Special . | . . . Average Slot Usage (%) 68 | . 95 51 Engine 9 | . 14 7 Wheel 17 | . 28 12 Hover 3 | . . 6 Device 8 | . 10 7 Storage 8 | . 14 6 Energy Gun 5 | . . 8 Ballistic Gun 10 | . 27 1 Launcher 1 | . . 2 Peak Build Rating 11 | 9 9 11 Average Rating 6 | 5 8 5 On Entrance 4 | . 9 4 Naked Turns 33 | . . 33 Heaviest Build 29 | 11 26 29 Greatest Support 32 | 32 32 26 Greatest Overweight (x) 2 | . 1 2 Average Overweight (x) . | . . . Largest Inventory Capacity 15 | 8 15 15 Average Capacity 10 | 7 14 10 Most Carried 5 | 4 5 5 Average Carried 3 | 1 4 3 Final Capacity 15 | 8 15 5 Final Carried 5 | 3 5 3 Class Distribution -------------------- 100% | Mutant Dominant Class ---------------- Mutant | -10/Materials Mutant | -9/Materials Resources | -11 -10 -9 ----------- Run | Yrd Mat Mat Matter Collected 267 | 206 61 . Remotely . | . . . Salvage Created 157 | 95 . 62 Parts 10 | 6 . 4 Haulers Intercepted . | . . . Recyclers Shooed 1 | 1 . . Parts Field Recycled . | . . . Retrieved Matter . | . . . Parts Self-Destructed . | . . . Prevented . | . . . Kills | -11 -10 -9 ------- Run | Yrd Mat Mat Combat Hostiles Destroyed 2 | . . 2 AOE 2 | . . 2 Classes Destroyed 3 | 2 . 1 Tunneler 1 | 1 . . Recycler 1 | 1 . . Grunt 2 | . . 2 Best Kill Streak 2 | 1 . 2 Combat Bots Only 2 | . . 2 Max Kills in Single Turn 2 | 1 . 2 Gunslinging . | . . . Exploded 2 | . . 2 Melee . | . . . Uniques/NPCs Destroyed . | . . . Combat | -11 -10 -9 -------- Run | Yrd Mat Mat Hostile Shots Fired 184 | . 64 120 Missed 71 | . 25 46 Hits 113 | . 39 74 Melee 1 | . . 1 Projectile 112 | . 39 73 Critical Strikes 2 | . . 2 Damage Taken 1346 | . 437 909 Core 565 | . 162 403 Absorbed by Shields . | . . . Core Remaining (%) 67 | 100 35 . Volleys Fired 15 | 9 1 5 Largest 2 | 2 2 2 Hottest 100 | 40 40 100 Shots Fired 27 | 18 2 7 Gun 22 | 18 2 2 Cannon 2 | . . 2 Launcher 1 | . . 1 Special 2 | . . 2 Kinetic 20 | 18 2 . Thermal 4 | . . 4 Explosive 1 | . . 1 Electromagnetic 2 | . . 2 Robot Hit Streak 7 | 7 6 7 Robot Miss Streak 1 | 1 . 1 Penetration Max . | . . . Secondary Targets . | . . . Shots Hit Robots 19 | 13 2 4 Core Hits 12 | 5 . 7 Critical Kills . | . . . Critical Parts Destroyed . | . . . Critical Strikes . | . . . Melee Attacks . | . . . Impact . | . . . Slashing . | . . . Piercing . | . . . Sneak Attacks . | . . . Combat Hostiles . | . . . Follow-up Attacks . | . . . Damage Inflicted 451 | 97 18 336 Guns 130 | 97 13 20 Cannons 19 | . . 19 Explosions 210 | . . 210 Melee . | . . . Ramming 92 | . 5 87 Kinetic 110 | 97 13 . Thermal 20 | . . 20 Explosive 210 | . . 210 Electromagnetic 19 | . . 19 Impact . | . . . Slashing . | . . . Piercing . | . . . Highest Corruption 1 | . . 1 Average Corruption 1 | . . 1 Corruption Purged . | . . . Corruption Blocked . | . . . Effects 1 | . . 1 Data Loss (minor) 1 | . . 1 Overload Shots . | . . . Overflow Damage 46 | . . 46 Projectiles . | . . . Explosions 46 | . . 46 Melee . | . . . Knockbacks . | . . . Impact . | . . . Kinetic . | . . . Secondary . | . . . Self-Inflicted Damage 87 | . 2 85 Shots 1 | . . 1 Rammed 21 | . 2 19 Targets Rammed 21 | . 2 19 Kicked . | . . . Crushed . | . . . Highest Temperature 54 | . . 54 Average Temperature 18 | . . 18 Received Heat Transfer 375 | . 120 255 Siege Activations . | . . . Martial Activations . | . . . Shielding Activations . | . . . Robots Disrupted . | . . . Combat Hostiles . | . . . Robots Corrupted . | . . . Combat Hostiles . | . . . Parts Fried . | . . . Impact Corruptions . | . . . Robots Melted . | . . . Combat Hostiles . | . . . Parts Melted . | . . . Heat Transferred 50 | . . 50 Parts Sabotaged . | . . . Parts Stolen . | . . . Parts Stripped . | . . . Power Chain Reactions . | . . . Alert | -11 -10 -9 ------- Run | Yrd Mat Mat Maximum Alert Level . | . . . Low Security (%) 100 | 100 100 100 Level 1 . | . . . Level 2 . | . . . Level 3 . | . . . Level 4 . | . . . Level 5 . | . . . High Security . | . . . Max Security . | . . . Peak Influence 60 | 5 15 60 Initial . | . . . Average 6 | . . 12 Influence Increases 220 | 10 24 186 Destroy 0b10 Robot/C 40 | . . 40 Destroy 0b10 Robot/NC 10 | 10 . . Successful Hack 9 | . 9 . Disable Machine 15 | . . 15 Destroy Structure 11 | . . 11 Partial Spotted 30 | . . 30 Lose Combat Pursuer 105 | . 15 90 Influence Decreases 190 | 10 24 156 Time Decay 90 | 10 14 66 Lost Part 100 | . 10 90 Squads Dispatched 3 | . 2 1 Investigation 1 | . 1 . Extermination . | . . . Reinforcement 2 | . 1 1 Assault . | . . . Garrison . | . . . Intercept . | . . . Searches Triggered . | . . . Construction Impeded . | . . . Haulers Reinforced . | . . . Active Scanning Responses . | . . . Cargo Convoy Interrupts . | . . . Stealth | -11 -10 -9 --------- Run | Yrd Mat Mat Distress Signals 2 | . 1 1 Communications Jammed . | . . . Distress Signals . | . . . Times Spotted 36 | . 12 24 Peak Tracking Total 12 | . 11 12 Tactical Retreats 3 | . 1 2 Traps | -11 -10 -9 ------- Run | Yrd Mat Mat Traps Triggered 2 | . 1 1 Indirectly . | . . . Trap Hack Attempts . | . . . Triggered . | . . . Disarmed . | . . . Reprogrammed . | . . . Reused . | . . . Traps Extracted . | . . . Installed . | . . . Triggered . | . . . Machines | -11 -10 -9 ---------- Run | Yrd Mat Mat Machines Disabled 1 | . . 1 Max in Single Turn 1 | . . 1 Machines Repaired . | . . . Machines Dismantled . | . . . Machines Sabotaged . | . . . Overloaded Fab Kills . | . . . Hacking | -11 -10 -9 --------- Run | Yrd Mat Mat Machines Accessed 4 | . 3 1 Terminals 3 | . 2 1 Fabricators . | . . . Repair Stations . | . . . Recycling Units 1 | . 1 . Scanalyzers . | . . . Garrison Access . | . . . Total Hacks 12 | . 10 2 Successful 3 | . 3 . Failed 9 | . 7 2 Catastrophic 1 | . 1 . Database Lockouts . | . . . Manual 3 | . 3 . Terminals 7 | . 5 2 Fabricators . | . . . Repair Stations . | . . . Recycling Units 5 | . 5 . Scanalyzers . | . . . Garrison Access . | . . . Terminal Hacks 2 | . 2 . Locate Traps 1 | . 1 . Hauler Manifests 1 | . 1 . Fabricator Hacks . | . . . Repair Station Hacks . | . . . Recycling Unit Hacks 1 | . 1 . Report Inventory 1 | . 1 . Scanalyzer . | . . . Garrison Access Hacks . | . . . Unauthorized Hacks . | . . . Terminals . | . . . Fabricators . | . . . Repair Stations . | . . . Recycling Units . | . . . Scanalyzers . | . . . Garrison Access . | . . . Data Cores Recovered . | . . . Used . | . . . Hacking Detections 5 | . 4 1 Full Trace Events 2 | . 2 . Feedback Events . | . . . Feedback Blocked . | . . . Robot Schematics Acquired . | . . . Robots Built . | . . . Authchips . | . . . Time . | . . . Total Robot Build Rating . | . . . Part Schematics Acquired . | . . . Parts Built . | . . . Authchips . | . . . Time . | . . . Total Part Build Rating . | . . . Parts Repaired . | . . . Time . | . . . Parts Recycled . | . . . Recycled Matter . | . . . Retrieved Matter . | . . . Retrieved Components . | . . . Parts Scanalyzed . | . . . Part Schematics Acquired . | . . . Parts Damaged . | . . . Bothacking | -11 -10 -9 ------------ Run | Yrd Mat Mat Used RIF Installer . | . . . Robots Hacked . | . . . Non-combat . | . . . Combat . | . . . Robot Hacks Applied . | . . . Relay Couplers Released . | . . . Fabnet Peak Effective % . | . . . Robots Rewired . | . . . Allies Hacked . | . . . Hacks Repelled . | . . . Allies | -11 -10 -9 -------- Run | Yrd Mat Mat Total Allies . | . . . Largest Group . | . . . Highest-Rated Group . | . . . Highest-Rated Ally . | . . . Total Orders . | . . . Ally Attacks . | . . . Total Damage . | . . . Kills . | . . . Allies Corrupted . | . . . Allies Melted . | . . . Intel | -11 -10 -9 ------- Run | Yrd Mat Mat Active Infowar (turns) 359 | 28 130 201 Sensors 201 | . . 201 Terrain 158 | 28 130 . Robot Analysis Total . | . . . Derelict Logs Recovered . | . . . Drone Launches . | . . . Drone Recoveries . | . . . Exploration | -11 -10 -9 ------------- Run | Yrd Mat Mat Turns Passed 600 | 137 169 294 Spaces Moved 528 | 80 162 286 Core 50 | 2 . 48 Treads . | . . . Legs . | . . . Wheels 388 | 78 162 148 Hover 90 | . . 90 Flight . | . . . Fastest Speed 50 | 50 100 50 Average Speed 87 | 90 100 78 Slowest Speed 150 | 100 115 150 Overloaded Moves . | . . . Propulsion Burnouts . | . . . Robots Hopped . | . . . Potential Cave-ins . | . . . Cave-ins Triggered . | . . . Exploration Rate (%) 30 | 4 42 45 Regions Visited 2 Branch Regions . Pre-discovered Areas . | . . . Known Exits Taken . | . . . Unknown Exits Taken 2 | 1 1 . Scrap Searched . | . . . Spaces Dug 2 | . . 2 Terrain Destroyed 13 | . . 13 Melee . | . . . Projectile 2 | . . 2 AOE 11 | . . 11 Terrain Rammed . | . . . Walls Destroyed . | . . . Machines Disabled . | . . . Actions | -11 -10 -9 --------- Run | Yrd Mat Mat Total 633 | 125 167 341 Wait 37 | 24 . 13 Move 526 | 79 161 286 Hop . | . . . Pick Up 7 | 3 1 3 Fast Attach 11 | 6 1 4 Attach 5 | 1 . 4 Detach 1 | . 1 . Swap 7 | 3 . 4 Drop 3 | . . 3 Fire 15 | 9 1 5 Melee . | . . . Ram 21 | . 2 19 Kick . | . . . Crush . | . . . Escape Stasis . | . . . Rewire . | . . . Trap . | . . . Miscellaneous . | . . . Route ------- -11/Scrapyard -10/Materials -9/Materials (discovered 1 exit: [*Mat]) History --------- Turn | Location | Event 10 | -11/Scrapyard | Discovered new exit (range 16) 138 | -11/Scrapyard | Entered Materials 296 | -10/Materials | Core integrity fell below 50% 296 | -10/Materials | Discovered new exit (range 11) 307 | -10/Materials | Entered another Materials area 307 | -9/Materials | Evolved 2 slots: Utility x2 338 | -9/Materials | Lost 3 parts (1n1u1w) 343 | -9/Materials | Build established: Mutant 540 | -9/Materials | Core integrity fell below 50% 561 | -9/Materials | Core integrity fell below 20% 566 | -9/Materials | Lost 7 parts (1p2n1u3w) 589 | -9/Materials | Discovered new exit (range 16) 601 | -9/Materials | Destroyed by G-34 Mercenary with Small Laser Last Messages --------------- 00535_ Slammed into S-10 Pest. 00535_ Destabilizing: System corrupted (+1). 00536_ Slammed into Y-45 Defender. 00538_ Slammed into G-34 Mercenary. 00544_ Slammed into A-02 Transporter. 00545_ Slammed into G-34 Mercenary. 00546_ Slammed into A-02 Transporter. 00554_ S-10 Pest destroyed. 00566_ Acquired Hover Unit. 00568_ System corrupted: Component data lost. 00568_ Acquired Hover Unit. 00577_ Acquired Prototype Engine. 00577_ Identified Hvy. Ion Engine. 00583_ Slammed into G-47 Trooper. 00584_ Slammed into G-34 Mercenary. 00587_ Hover Unit destroyed. 00589_ EXIT=FOUND 00594_ Hover Unit destroyed. 00596_ S-10 Pest destroyed. 00599_ Dropped Hvy. Ion Engine. Map ----- +----------------------------------------------------+ | ?????????????????+ #????????????????????? | | ?????????????????# #????????????????????? | | ?????????????????# #????????????????????? | | ?????????????????# #????????????????????? | | ?????????????????# ##########???????????? | | ?????????????????# # #???????????? | | ?????????????????# # === #???????????? | | ??????????######## # == #???????????? | | ??????????# # # = #???????????? | | ??????????# # + #???????????? | | ??????????# """" + # """"" #???????????? | | ??????????# """" # # """"" #???????????? | | ??????????# """" # gg# """"" #???????????? | | ??????????# # # #???????????? | | ?????????######### ##########???????????? | | ???????# +gs #????????????????????? | | ???????# #sgg#????????????????????? | | ???????# # = #????????????????????? | | ???????# ?# #????????????????????? | | ???????#########?# #????????????????????? | | ?????????????????# #????????????????????? | | ??????????#??????# #????????????????????? | | ??????????# ????# #????????????????????? | | ??????????# """??#* #????????????????????? | | ??????????# """ # #????????????????????? | | ??????????# """ /@ #????????????????????? | | ??????????# # #????????????????????? | | ??????????#####??# #????????????????????? | | ?????????????????# #????????????????????? | | ?????????????????# #????????????????????? | | ?????????????????+ #????????????????????? | | ?????????????????# < #????????????????????? | | ?????????????????# #????????????????????? | | ?????????????????#####????????????????????? | | ??????????????????????????????????????????? | | ??????????????????????????????????????????? | | ??????????????????????????????????????????? | | ??????????????????????????????????????????? | | ??????????????????????????????????????????? | | ??????????????????????????????????????????? | | ??????????????????????????????????????????? | | | | | | | | | | | | | | | | | | | +----------------------------------------------------+ Best States ------------- Heat Dissipation 28 Energy Generation 14 Energy Capacity 280 Matter Stores 254 Matter Capacity 300 Sight Range 16 Robot Scan Range 14 Terrain Scan Range 16 Terrain Scan Density 10 Evasion (%) 53 Item Schematics ----------------- None Robot Schematics ------------------ None Fabricated ------------ Nothing Repaired ---------- Nothing Alien Tech Used ----------------- None Achievements -------------- None Challenges ------------ None Game ------ Seed ExoskeletonDerelictBox Manual? 0 Play Time 00:12:38 Cumulative 23.6 hours Start 2025.05.18 @ 22:56:25 End 2025.05.18 @ 23:06:56 Sessions 1 Manual Loads 0 Difficulty Rogue Special Mode None Game No. 32 Rogue 32 Adventurer 0 Explorer 0 Win Type - Total 0 Types 0/0/0/0/0/0/0/0/0/0 Lore% 14 Gallery% 20 Achievement% 22 Wizard Run 0 Options --------- Layout 0 ASCII 0 Keyboard 0 Movement Numpad Keybinds 0 Fullscreen 1 Font 18/SmallcapsGlow Map View 76x50 Zoom Use 0% Tactical HUD 1 Map Filters NONE Filters NONE Steam 1 RUN: 9158ccaa-5e54-4261-9fc7-65caa4320160